[Event "Plancoet op-A 10th"]
[Site "Plancoet"]
[Date "2013.07.29"]
[Round "2"]
[White "Milchev, Nikolay"]
[Black "Kukov, Velislav"]
[Result "1/2-1/2"]
[ECO "C42"]
[WhiteElo "2433"]
[BlackElo "2370"]
[Annotator "RR"]
[PlyCount "44"]
[EventDate "2013.07.28"]
[EventType "swiss"]
[EventRounds "9"]
[EventCountry "FRA"]
[SourceTitle "EXT 2017"]
[Source "ChessBase"]
[SourceDate "2016.10.25"]
[SourceVersion "1"]
[SourceVersionDate "2016.10.25"]
[SourceQuality "1"]
[TimeControl "40/5400+30:1800+30"]

1. e4 e5 2. Nf3 Nf6 3. Nxe5 d6 4. Nf3 Nxe4 5. Qe2 Qe7 6. d3 Nf6 7. Bg5 Qxe2+ 8.
Bxe2 Be7 9. Nc3 O-O 10. O-O c6 11. Rfe1 Nbd7 (11... h6 12. Bf4 Re8 {1/2-1/2 
(12) Gurevich,I (2585)-Dzindzichashvili,R (2540) New York 1994}) 12. d4 Re8 13.
h3 Nf8 14. Bd3 {(=)} Be6 {Les Noirs refusent mais ils ne vont pas insister
longtemps} 15. Ne4 Nxe4 16. Bxe4 Bxg5 17. Nxg5 Bd5 18. Bxd5 cxd5 19. Kf1 h6 20.
Rxe8 Rxe8 21. Nf3 Nd7 22. Re1 Rxe1+ 1/2-1/2